Workbook

Sheet TOT-0416
B2: ANEXO IV al Memorandum D.T.E.E. N° 279 / 2017
A4: ENTE NACIONAL REGULADOR
A5: DE LA ELECTRICIDAD
B7: SISTEMA DE TRANSPORTE DE ENERGÍA ELÉCTRICA POR DISTRIBUCIÓN TRONCAL
B9: TRANSPA S.A.
B11: TOTAL DE PENALIZACIONES
B13: 1
B14: Desde el 01 al 30 de abril de 2016
B16: =IF(B13=2,"Sanciones duplicadas por tasa de falla > 4 Sal. x año/100km.","") -> 
C17: 1.- | D17: LÍNEAS
D18: 1.1.- | E18: Equipamiento propio | I18: ='LI-04 (1)'!AA43 -> 46374.19
C20: 2.- | D20: CONEXIÓN
D22: 2.1.- | E22: Transformación
E23: 2.1.1.- | F23: Equipamiento propio | I23: ='TR-04 (1)'!AC45 -> 382.43
E24: 2.1.2.- | F24: Transp. Indep. ECLESUR La Esperanza - Calafate | I24: ='TR-ECLESUR-04 (1)'!AC45 -> 96.45
D26: 2.2.- | E26: Salidas
E27: 2.2.1.- | F27: Transportista Independiente E.D.E.R.S.A. | I27: ='SA-EDERSA-04 (1)'!V45 -> 19.24503
C29: 3.- | D29: SUPERVISIÓN
D30: 3.1.- | E30: Transportista Independiente E.D.E.R.S.A. | I30: ='SUP-EDERSA '!I57 -> 5.22395463
D31: 3.2.- | E31: Transp. Indep. ECLESUR La Esperanza - Calafate | I31: ='SUP-ECLESUR'!I55 -> 50.71173455
F33: TOTAL | G33: =SUM(I18:I31) -> 46928.25072
C35: Valores remuneratorios de acuerdo al Acuerdo S.E.E. - ENRE - TRANSPA S.A. 2016-2017

Sheet LI-04 (1)
B2: =+'TOT-0416'!B2 -> ANEXO IV al Memorandum D.T.E.E. N° 279 / 2017
A4: ENTE NACIONAL REGULADOR
A5: DE LA ELECTRICIDAD
F8: SISTEMA DE TRANSPORTE DE ENERGÍA ELÉCTRICA POR DISTRIBUCIÓN TRONCAL - TRANSPA S.A.
F10: 1.- LÍNEAS
F12: 1.1.- Equipamiento propio
B14: =+'TOT-0416'!B14 -> Desde el 01 al 30 de abril de 2016
F16: $/100 km-h : LINEAS 330 kV | G16: 273.243
F17: $/100 km-h : LINEAS 132 kV | G17: 261.099 | K17: FACTOR DE PENALIZACION K = | L17: =30*'TOT-0416'!B13 -> 30 | M17: =IF(L17=30," ",IF(L17=60,"Coeficiente duplicado por tasa de falla >4 Sal. x año/100 km.","REVISAR COEFICIENTE")) -> 
C18: 3 | D18: 4 | E18: 5 | F18: 6 | G18: 7 | H18: 8 | I18: 9 | J18: 10 | K18: 11 | L18: 12 | M18: 13 | N18: 14 | O18: 15 | P18: 16 | Q18: 17 | R18: 18 | S18: 19 | T18: 20 | U18: 21 | V18: 22 | W18: 23 | X18: 24 | Y18: 25 | Z18: 26 | AA18: 27
C19: N° | D19: INDISP | E19: ID EQUIPO | F19: LÍNEAS | G19: U [kV] | H19: Long. [km] | I19: $/h | J19: Salida | K19: Entrada | L19: Hs. Indisp | M19: Minutos Indisp | N19: Tipo Sal.(²) | O19: C.R. % | P19: PENALIZ. PROGRAM. | Q19: REDUCC. PROGRAM. | R19: PENALIZACION FORZADA Por Salida 1ras 3 hs. hs. Restante | U19: REDUCC. FORZADA Por Salida 1ras 3 hs. hs. Restante | X19: RESTANTE FORZADA | Y19: REDUCC. RESTANTE | Z19: Informó en Térm. | AA19: TOTAL PENALIZAC.
C22: 1 | D22: 301235 | E22: 1629 | F22: PLANTA ALUMINIO DGPA - TRELEW | G22: 132 | H22: 62 | I22: =IF(H22>25,H22,25)*IF(G22=330,$G$16,$G$17)/100 -> 161.88138 | J22: 2016-04-06T06:41:00 | K22: 2016-04-06T15:00:00 | L22: =IF(F22="","",(K22-J22)*24) -> 8.316666667 | M22: =IF(F22="","",ROUND((K22-J22)*24*60,0)) -> 499 | N22: P | O22: 0,000 | P22: =IF(N22="P",ROUND(M22/60,2)*I22*$L$17*0.01,"--") -> 404.0559245 | Q22: =IF(N22="RP",ROUND(M22/60,2)*I22*$L$17*0.01*O22/100,"--") -> -- | R22: =IF(N22="F",I22*$L$17,"--") -> -- | S22: =IF(AND(M22>10,N22="F"),I22*$L$17*IF(M22>180,3,ROUND(M22/60,2)),"--") -> -- | T22: =IF(AND(M22>180,N22="F"),(ROUND(M22/60,2)-3)*I22*$L$17*0.1,"--") -> -- | U22: =IF(N22="R",I22*$L$17*O22/100,"--") -> -- | V22: =IF(AND(M22>10,N22="R"),I22*$L$17*O22/100*IF(M22>180,3,ROUND(M22/60,2)),"--") -> -- | W22: =IF(AND(M22>180,N22="R"),(ROUND(M22/60,2)-3)*O22/100*I22*$L$17*0.1,"--") -> -- | X22: =IF(N22="RF",ROUND(M22/60,2)*I22*$L$17*0.1,"--") -> -- | Y22: =IF(N22="RR",ROUND(M22/60,2)*O22/100*I22*$L$17*0.1,"--") -> -- | Z22: SI | AA22: =IF(F22="","",SUM(P22:Y22)*IF(Z22="SI",1,2)) -> 404.0559245
C23: 2 | D23: 301772 | E23: 2035 | F23: COMODORO RIVADAVIA (A1) - ESTACION PATAGONIA | G23: 132 | H23: 6.9 | I23: 65.27475 | J23: 2016-04-23T07:26:00 | K23: 2016-04-23T18:19:00 | L23: 10.88333333 | M23: 653 | N23: F | O23: 0,000 | P23: -- | Q23: -- | R23: 1958.2425 | S23: 5874.7275 | T23: 1543.09509 | U23: -- | V23: -- | W23: -- | X23: -- | Y23: -- | Z23: SI | AA23: 9376.06509
C24: 3 | D24: 302056 | E24: 1630 | F24: PLANTA ALUMINIO DGPA - PTO MADRYN | G24: 132 | H24: 5.7 | I24: 65.27475 | J24: 2016-04-26T13:37:00 | K24: 2016-04-26T14:13:00 | L24: 0.6 | M24: 36 | N24: F | O24: 0,000 | P24: -- | Q24: -- | R24: 1958.2425 | S24: 1174.9455 | T24: -- | U24: -- | V24: -- | W24: -- | X24: -- | Y24: -- | Z24: SI | AA24: 3133.188
C25: 4 | D25: 302055 | E25: 1629 | F25: PLANTA ALUMINIO DGPA - TRELEW | G25: 132 | H25: 62 | I25: 161.88138 | J25: 2016-04-26T13:37:00 | K25: 2016-04-27T21:31:00 | L25: =IF(F25="","",(K25-J25)*24) -> 31.9 | M25: =IF(F25="","",ROUND((K25-J25)*24*60,0)) -> 1914 | N25: F | O25: 0,000 | P25: =IF(N25="P",ROUND(M25/60,2)*I25*$L$17*0.01,"--") -> -- | Q25: =IF(N25="RP",ROUND(M25/60,2)*I25*$L$17*0.01*O25/100,"--") -> -- | R25: =IF(N25="F",I25*$L$17,"--") -> 4856.4414 | S25: =IF(AND(M25>10,N25="F"),I25*$L$17*IF(M25>180,3,ROUND(M25/60,2)),"--") -> 14569.3242 | T25: =IF(AND(M25>180,N25="F"),(ROUND(M25/60,2)-3)*I25*$L$17*0.1,"--") -> 14035.11565 | U25: =IF(N25="R",I25*$L$17*O25/100,"--") -> -- | V25: =IF(AND(M25>10,N25="R"),I25*$L$17*O25/100*IF(M25>180,3,ROUND(M25/60,2)),"--") -> -- | W25: =IF(AND(M25>180,N25="R"),(ROUND(M25/60,2)-3)*O25/100*I25*$L$17*0.1,"--") -> -- | X25: =IF(N25="RF",ROUND(M25/60,2)*I25*$L$17*0.1,"--") -> -- | Y25: =IF(N25="RR",ROUND(M25/60,2)*O25/100*I25*$L$17*0.1,"--") -> -- | Z25: SI | AA25: 33460.88125
I26: 65.27475 | P26: -- | Q26: -- | R26: -- | S26: -- | T26: -- | U26: -- | V26: -- | W26: -- | X26: -- | Y26: --
I27: 65.27475 | P27: -- | Q27: -- | R27: -- | S27: -- | T27: -- | U27: -- | V27: -- | W27: -- | X27: -- | Y27: --
I28: 65.27475 | O28: =IF(F28="","","--") ->  | P28: -- | Q28: -- | R28: -- | S28: -- | T28: -- | U28: -- | V28: -- | W28: -- | X28: -- | Y28: -- | Z28: =IF(F28="","","SI") -> 
I29: 65.27475 | P29: -- | Q29: -- | R29: -- | S29: -- | T29: -- | U29: -- | V29: -- | W29: -- | X29: -- | Y29: --
I30: 65.27475 | P30: -- | Q30: -- | R30: -- | S30: -- | T30: -- | U30: -- | V30: -- | W30: -- | X30: -- | Y30: --
I31: 65.27475 | P31: -- | Q31: -- | R31: -- | S31: -- | T31: -- | U31: -- | V31: -- | W31: -- | X31: -- | Y31: --
I32: 65.27475 | P32: -- | Q32: -- | R32: -- | S32: -- | T32: -- | U32: -- | V32: -- | W32: -- | X32: -- | Y32: --
I33: 65.27475 | P33: -- | Q33: -- | R33: -- | S33: -- | T33: -- | U33: -- | V33: -- | W33: -- | X33: -- | Y33: --
I34: 65.27475 | P34: -- | Q34: -- | R34: -- | S34: -- | T34: -- | U34: -- | V34: -- | W34: -- | X34: -- | Y34: --
I35: 65.27475 | P35: -- | Q35: -- | R35: -- | S35: -- | T35: -- | U35: -- | V35: -- | W35: -- | X35: -- | Y35: --
I36: 65.27475 | P36: -- | Q36: -- | R36: -- | S36: -- | T36: -- | U36: -- | V36: -- | W36: -- | X36: -- | Y36: --
I37: 65.27475 | P37: -- | Q37: -- | R37: -- | S37: -- | T37: -- | U37: -- | V37: -- | W37: -- | X37: -- | Y37: --
I38: 65.27475 | P38: -- | Q38: -- | R38: -- | S38: -- | T38: -- | U38: -- | V38: -- | W38: -- | X38: -- | Y38: --
I39: =IF(H39>25,H39,25)*IF(G39=330,$G$16,$G$17)/100 -> 65.27475 | L39: =IF(F39="","",(K39-J39)*24) ->  | M39: =IF(F39="","",ROUND((K39-J39)*24*60,0)) ->  | O39: =IF(F39="","","--") ->  | P39: =IF(N39="P",ROUND(M39/60,2)*I39*$L$17*0.01,"--") -> -- | Q39: =IF(N39="RP",ROUND(M39/60,2)*I39*$L$17*0.01*O39/100,"--") -> -- | R39: =IF(N39="F",I39*$L$17,"--") -> -- | S39: =IF(AND(M39>10,N39="F"),I39*$L$17*IF(M39>180,3,ROUND(M39/60,2)),"--") -> -- | T39: =IF(AND(M39>180,N39="F"),(ROUND(M39/60,2)-3)*I39*$L$17*0.1,"--") -> -- | U39: =IF(N39="R",I39*$L$17*O39/100,"--") -> -- | V39: =IF(AND(M39>10,N39="R"),I39*$L$17*O39/100*IF(M39>180,3,ROUND(M39/60,2)),"--") -> -- | W39: =IF(AND(M39>180,N39="R"),(ROUND(M39/60,2)-3)*O39/100*I39*$L$17*0.1,"--") -> -- | X39: =IF(N39="RF",ROUND(M39/60,2)*I39*$L$17*0.1,"--") -> -- | Y39: =IF(N39="RR",ROUND(M39/60,2)*O39/100*I39*$L$17*0.1,"--") -> -- | Z39: =IF(F39="","","SI") ->  | AA39: =IF(F39="","",SUM(P39:Y39)*IF(Z39="SI",1,2)) -> 
I40: =IF(H40>25,H40,25)*IF(G40=330,$G$16,$G$17)/100 -> 65.27475 | L40: =IF(F40="","",(K40-J40)*24) ->  | M40: =IF(F40="","",ROUND((K40-J40)*24*60,0)) ->  | O40: =IF(F40="","","--") ->  | P40: =IF(N40="P",ROUND(M40/60,2)*I40*$L$17*0.01,"--") -> -- | Q40: =IF(N40="RP",ROUND(M40/60,2)*I40*$L$17*0.01*O40/100,"--") -> -- | R40: =IF(N40="F",I40*$L$17,"--") -> -- | S40: =IF(AND(M40>10,N40="F"),I40*$L$17*IF(M40>180,3,ROUND(M40/60,2)),"--") -> -- | T40: =IF(AND(M40>180,N40="F"),(ROUND(M40/60,2)-3)*I40*$L$17*0.1,"--") -> -- | U40: =IF(N40="R",I40*$L$17*O40/100,"--") -> -- | V40: =IF(AND(M40>10,N40="R"),I40*$L$17*O40/100*IF(M40>180,3,ROUND(M40/60,2)),"--") -> -- | W40: =IF(AND(M40>180,N40="R"),(ROUND(M40/60,2)-3)*O40/100*I40*$L$17*0.1,"--") -> -- | X40: =IF(N40="RF",ROUND(M40/60,2)*I40*$L$17*0.1,"--") -> -- | Y40: =IF(N40="RR",ROUND(M40/60,2)*O40/100*I40*$L$17*0.1,"--") -> -- | Z40: =IF(F40="","","SI") ->  | AA40: =IF(F40="","",SUM(P40:Y40)*IF(Z40="SI",1,2)) -> 
I41: =IF(H41>25,H41,25)*IF(G41=330,$G$16,$G$17)/100 -> 65.27475 | L41: =IF(F41="","",(K41-J41)*24) ->  | M41: =IF(F41="","",ROUND((K41-J41)*24*60,0)) ->  | O41: =IF(F41="","","--") ->  | P41: =IF(N41="P",ROUND(M41/60,2)*I41*$L$17*0.01,"--") -> -- | Q41: =IF(N41="RP",ROUND(M41/60,2)*I41*$L$17*0.01*O41/100,"--") -> -- | R41: =IF(N41="F",I41*$L$17,"--") -> -- | S41: =IF(AND(M41>10,N41="F"),I41*$L$17*IF(M41>180,3,ROUND(M41/60,2)),"--") -> -- | T41: =IF(AND(M41>180,N41="F"),(ROUND(M41/60,2)-3)*I41*$L$17*0.1,"--") -> -- | U41: =IF(N41="R",I41*$L$17*O41/100,"--") -> -- | V41: =IF(AND(M41>10,N41="R"),I41*$L$17*O41/100*IF(M41>180,3,ROUND(M41/60,2)),"--") -> -- | W41: =IF(AND(M41>180,N41="R"),(ROUND(M41/60,2)-3)*O41/100*I41*$L$17*0.1,"--") -> -- | X41: =IF(N41="RF",ROUND(M41/60,2)*I41*$L$17*0.1,"--") -> -- | Y41: =IF(N41="RR",ROUND(M41/60,2)*O41/100*I41*$L$17*0.1,"--") -> -- | Z41: =IF(F41="","","SI") ->  | AA41: =IF(F41="","",SUM(P41:Y41)*IF(Z41="SI",1,2)) -> 
C43: (²) | D43: P - PROGRAMADA ; F - FORZADA | P43: =ROUND(SUM(P20:P42),2) -> 404.06 | Q43: 0 | R43: 8772.93 | S43: 21619 | T43: 15578.21 | U43: 0 | V43: 0 | W43: 0 | X43: 0 | Y43: 0 | AA43: =ROUND(SUM(AA20:AA42),2) -> 46374.19

Sheet TR-04 (1)
B2: =+'TOT-0416'!B2 -> ANEXO IV al Memorandum D.T.E.E. N° 279 / 2017
A4: ENTE NACIONAL REGULADOR
A5: DE LA ELECTRICIDAD
F8: SISTEMA DE TRANSPORTE DE ENERGÍA ELÉCTRICA POR DISTRIBUCIÓN TRONCAL - TRANSPA S.A.
F10: 2.- CONEXIÓN
F12: 2.1.- Transformación
F14: 2.1.1.- Equipamiento propio
B16: =+'TOT-0416'!B14 -> Desde el 01 al 30 de abril de 2016
F18: Por Transformador por MVA $ = | I18: 0.909
F19: Coeficiente de penalización por salida forzada = | I19: 30 | K19: =IF(I19=30," ",IF(I19=60,"Coeficiente duplicado por tasa de falla >4 Sal. x año/100 km.","REVISAR COEFICIENTE")) -> 
C20: 3 | D20: 4 | E20: 5 | F20: 6 | G20: 7 | H20: 8 | I20: 9 | J20: 10 | K20: 11 | L20: 12 | M20: 13 | N20: 14 | O20: 15 | P20: 16 | Q20: 17 | R20: 18 | S20: 19 | T20: 20 | U20: 21 | V20: 22 | W20: 23 | X20: 24 | Y20: 25 | Z20: 26 | AA20: 27 | AB20: 28 | AC20: 29
C21: N° | D21: INDISP | E21: ID EQUIPO | F21: ESTACIÓN TRANSFORMADORA | G21: EQUIPO | H21: POT. [MVA] | I21: U [kV] | J21: $/h | K21: Salida | L21: Entrada | M21: Hs. Indisp. | N21: Mtos. Indisp. | O21: Tipo Sal.(²) | P21: AUT. | Q21: REST. % | R21: E.N.S. | S21: K (P;ENS) | T21: PENALIZ. PROGRAM. | U21: REDUCC. PROGRAM. | V21: PENALIZACIONES Por Salida hs. Restantes | X21: PENALIZACIONES Por Salida hs. Restantes | Z21: RESTANTE FORZADA | AA21: REDUCC. RESTANTE | AB21: Informó en Térm. | AC21: TOTAL PENALIZAC.
C24: 5 | D24: 300947 | E24: 1810 | F24: TRELEW | G24: TRAFO 3 | H24: 30 | I24: 132/33/13,2 | J24: =H24*$I$18 -> 27.27 | K24: 2016-04-01T08:46:00 | L24: 2016-04-01T12:22:00 | M24: =IF(F24="","",(L24-K24)*24) -> 3.6 | N24: =IF(F24="","",ROUND((L24-K24)*24*60,0)) -> 216 | O24: P | P24: =IF(F24="","",IF(OR(O24="P",O24="RP"),"--","NO")) -> -- | Q24: =IF(F24="","","--") -> -- | R24: =IF(F24="","","NO") -> NO | S24: =$I$19*IF(OR(O24="P",O24="RP"),0.1,1)*IF(R24="SI",1,0.1) -> 0.3 | T24: =IF(O24="P",J24*S24*ROUND(N24/60,2),"--") -> 29.4516 | U24: =IF(O24="RP",J24*S24*ROUND(N24/60,2)*Q24/100,"--") -> -- | V24: =IF(AND(O24="F",P24="NO"),J24*S24,"--") -> -- | W24: =IF(O24="F",J24*S24*ROUND(N24/60,2),"--") -> -- | X24: =IF(AND(O24="R",P24="NO"),J24*S24*Q24/100,"--") -> -- | Y24: =IF(O24="R",J24*S24*ROUND(N24/60,2)*Q24/100,"--") -> -- | Z24: =IF(O24="RF",J24*S24*ROUND(N24/60,2),"--") -> -- | AA24: =IF(O24="RR",J24*S24*ROUND(N24/60,2)*Q24/100,"--") -> -- | AB24: SI | AC24: =IF(F24="","",SUM(T24:AA24)*IF(AB24="SI",1,2)) -> 29.4516
C25: 6 | D25: 301550 | E25: 1788 | F25: COM. RIVADAV.A1 | G25: TRAFO 5 | H25: 30 | I25: 132/33/13,2 | J25: =H25*$I$18 -> 27.27 | K25: 2016-04-12T07:19:00 | L25: 2016-04-12T18:58:00 | M25: 11.65 | N25: 699 | O25: P | P25: -- | Q25: -- | R25: NO | S25: =$I$19*IF(OR(O25="P",O25="RP"),0.1,1)*IF(R25="SI",1,0.1) -> 0.3 | T25: =IF(O25="P",J25*S25*ROUND(N25/60,2),"--") -> 95.30865 | U25: =IF(O25="RP",J25*S25*ROUND(N25/60,2)*Q25/100,"--") -> -- | V25: =IF(AND(O25="F",P25="NO"),J25*S25,"--") -> -- | W25: =IF(O25="F",J25*S25*ROUND(N25/60,2),"--") -> -- | X25: =IF(AND(O25="R",P25="NO"),J25*S25*Q25/100,"--") -> -- | Y25: =IF(O25="R",J25*S25*ROUND(N25/60,2)*Q25/100,"--") -> -- | Z25: =IF(O25="RF",J25*S25*ROUND(N25/60,2),"--") -> -- | AA25: =IF(O25="RR",J25*S25*ROUND(N25/60,2)*Q25/100,"--") -> -- | AB25: SI | AC25: =IF(F25="","",SUM(T25:AA25)*IF(AB25="SI",1,2)) -> 95.30865
C26: 7 | D26: 301769 | E26: 1794 | F26: PICO TRUNCADO 1 | G26: AU07 | H26: 20 | I26: 132/66/13.2 | J26: =H26*$I$18 -> 18.18 | K26: 2016-04-19T09:20:00 | L26: 2016-04-19T15:27:00 | M26: 6.116666667 | N26: 367 | O26: P | P26: =IF(F26="","",IF(OR(O26="P",O26="RP"),"--","NO")) -> -- | Q26: =IF(F26="","","--") -> -- | R26: NO | S26: =$I$19*IF(OR(O26="P",O26="RP"),0.1,1)*IF(R26="SI",1,0.1) -> 0.3 | T26: =IF(O26="P",J26*S26*ROUND(N26/60,2),"--") -> 33.37848 | U26: =IF(O26="RP",J26*S26*ROUND(N26/60,2)*Q26/100,"--") -> -- | V26: =IF(AND(O26="F",P26="NO"),J26*S26,"--") -> -- | W26: =IF(O26="F",J26*S26*ROUND(N26/60,2),"--") -> -- | X26: =IF(AND(O26="R",P26="NO"),J26*S26*Q26/100,"--") -> -- | Y26: =IF(O26="R",J26*S26*ROUND(N26/60,2)*Q26/100,"--") -> -- | Z26: =IF(O26="RF",J26*S26*ROUND(N26/60,2),"--") -> -- | AA26: =IF(O26="RR",J26*S26*ROUND(N26/60,2)*Q26/100,"--") -> -- | AB26: SI | AC26: =IF(F26="","",SUM(T26:AA26)*IF(AB26="SI",1,2)) -> 33.37848
C27: 8 | D27: 301770 | E27: 1794 | F27: PICO TRUNCADO 1 | G27: AU07 | H27: 20 | I27: 132/66/13.2 | J27: 18.18 | K27: 2016-04-21T08:26:00 | L27: 2016-04-21T14:31:00 | M27: 6.083333333 | N27: 365 | O27: P | P27: =IF(F27="","",IF(OR(O27="P",O27="RP"),"--","NO")) -> -- | Q27: =IF(F27="","","--") -> -- | R27: NO | S27: 0.3 | T27: 33.16032 | U27: -- | V27: -- | W27: -- | X27: -- | Y27: -- | Z27: -- | AA27: -- | AB27: =IF(F27="","","SI") -> SI | AC27: =IF(F27="","",SUM(T27:AA27)*IF(AB27="SI",1,2)) -> 33.16032
C28: 9 | D28: 301771 | E28: 1794 | F28: PICO TRUNCADO 1 | G28: AU07 | H28: 20 | I28: 132/66/13.2 | J28: 18.18 | K28: 2016-04-22T08:26:00 | L28: 2016-04-22T17:09:00 | M28: 8.716666667 | N28: 523 | O28: P | P28: -- | Q28: -- | R28: NO | S28: 0.3 | T28: 47.55888 | U28: -- | V28: -- | W28: -- | X28: -- | Y28: -- | Z28: -- | AA28: -- | AB28: SI | AC28: 47.55888
C29: 10 | D29: 302054 | E29: 1801 | F29: PUERTO MADRYN | G29: AU01 | H29: 60 | I29: 330/132/33 | J29: 54.54 | K29: 2016-04-25T13:35:00 | L29: 2016-04-25T16:01:00 | M29: 2.433333333 | N29: 146 | O29: P | P29: -- | Q29: -- | R29: NO | S29: 0.3 | T29: 39.75966 | U29: -- | V29: -- | W29: -- | X29: -- | Y29: -- | Z29: -- | AA29: -- | AB29: SI | AC29: 39.75966
C30: 11 | D30: 302062 | E30: 1788 | F30: COM. RIVADAV.A1 | G30: TRAFO 5 | H30: 30 | I30: 132/33/13,2 | J30: 27.27 | K30: 2016-04-27T09:33:00 | L30: 2016-04-27T13:31:00 | M30: 3.966666667 | N30: 238 | O30: P | P30: -- | Q30: -- | R30: NO | S30: 0.3 | T30: 32.47857 | U30: -- | V30: -- | W30: -- | X30: -- | Y30: -- | Z30: -- | AA30: -- | AB30: SI | AC30: 32.47857
C31: 12 | D31: 302063 | E31: 1788 | F31: COM. RIVADAV.A1 | G31: TRAFO 5 | H31: 30 | I31: 132/33/13,2 | J31: 27.27 | K31: 2016-04-28T09:46:00 | L31: 2016-04-28T13:41:00 | M31: 3.916666667 | N31: 235 | O31: P | P31: -- | Q31: -- | R31: NO | S31: 0.3 | T31: 32.06952 | U31: -- | V31: -- | W31: -- | X31: -- | Y31: -- | Z31: -- | AA31: -- | AB31: SI | AC31: 32.06952
C32: 13 | D32: 302064 | E32: 1788 | F32: COM. RIVADAV.A1 | G32: TRAFO 5 | H32: 30 | I32: 132/33/13,2 | J32: 27.27 | K32: 2016-04-29T10:04:00 | L32: 2016-04-29T14:52:00 | M32: 4.8 | N32: 288 | O32: P | P32: -- | Q32: -- | R32: NO | S32: 0.3 | T32: 39.2688 | U32: -- | V32: -- | W32: -- | X32: -- | Y32: -- | Z32: -- | AA32: -- | AB32: SI | AC32: 39.2688
J33: 0 | S33: 3 | T33: -- | U33: -- | V33: -- | W33: -- | X33: -- | Y33: -- | Z33: -- | AA33: --
J34: 0 | S34: 3 | T34: -- | U34: -- | V34: -- | W34: -- | X34: -- | Y34: -- | Z34: -- | AA34: --
J35: =H35*$I$18 -> 0 | M35: =IF(F35="","",(L35-K35)*24) ->  | N35: =IF(F35="","",ROUND((L35-K35)*24*60,0)) ->  | S35: =$I$19*IF(OR(O35="P",O35="RP"),0.1,1)*IF(R35="SI",1,0.1) -> 3 | T35: =IF(O35="P",J35*S35*ROUND(N35/60,2),"--") -> -- | U35: =IF(O35="RP",J35*S35*ROUND(N35/60,2)*Q35/100,"--") -> -- | V35: =IF(AND(O35="F",P35="NO"),J35*S35,"--") -> -- | W35: =IF(O35="F",J35*S35*ROUND(N35/60,2),"--") -> -- | X35: =IF(AND(O35="R",P35="NO"),J35*S35*Q35/100,"--") -> -- | Y35: =IF(O35="R",J35*S35*ROUND(N35/60,2)*Q35/100,"--") -> -- | Z35: =IF(O35="RF",J35*S35*ROUND(N35/60,2),"--") -> -- | AA35: =IF(O35="RR",J35*S35*ROUND(N35/60,2)*Q35/100,"--") -> -- | AB35: =IF(F35="","","SI") -> 
J36: 0 | S36: 3 | T36: -- | U36: -- | V36: -- | W36: -- | X36: -- | Y36: -- | Z36: -- | AA36: -- | AC36: =IF(F36="","",SUM(T36:AA36)*IF(AB36="SI",1,2)) -> 
J37: 0 | S37: 3 | T37: -- | U37: -- | V37: -- | W37: -- | X37: -- | Y37: -- | Z37: -- | AA37: --
J38: 0 | S38: 3 | T38: -- | U38: -- | V38: -- | W38: -- | X38: -- | Y38: -- | Z38: -- | AA38: --
J39: 0 | S39: 3 | T39: -- | U39: -- | V39: -- | W39: -- | X39: -- | Y39: -- | Z39: -- | AA39: --
J40: 0 | S40: 3 | T40: -- | U40: -- | V40: -- | W40: -- | X40: -- | Y40: -- | Z40: -- | AA40: --
J41: 0 | S41: 3 | T41: -- | U41: -- | V41: -- | W41: -- | X41: -- | Y41: -- | Z41: -- | AA41: --
J42: 0 | S42: 3 | T42: -- | U42: -- | V42: -- | W42: -- | X42: -- | Y42: -- | Z42: -- | AA42: --
J43: 0 | S43: 3 | T43: -- | U43: -- | V43: -- | W43: -- | X43: -- | Y43: -- | Z43: -- | AA43: --
C45: (²) | D45: P - PROGRAMADA | T45: =SUM(T22:T44) -> 382.43448 | U45: 0 | V45: 0 | W45: 0 | X45: 0 | Y45: 0 | Z45: 0 | AA45: 0 | AC45: =ROUND(SUM(AC22:AC44),2) -> 382.43

Sheet TR-ECLESUR-04 (1)
B2: ='TOT-0416'!B2 -> ANEXO IV al Memorandum D.T.E.E. N° 279 / 2017
A4: ENTE NACIONAL REGULADOR
A5: DE LA ELECTRICIDAD
F8: SISTEMA DE TRANSPORTE DE ENERGÍA ELÉCTRICA POR DISTRIBUCIÓN TRONCAL - TRANSPA S.A.
F11: 2.1.2.- Transportista Independiente ECLESUR LA ESPERANZA - CALAFATE
B14: ='TOT-0416'!B14 -> Desde el 01 al 30 de abril de 2016
F17: Por Transformador por MVA $ = | I17: 0.1458
F18: Coeficiente de penalización por salida forzada = | I18: =30*'TOT-0416'!B13 -> 30 | K18: =IF(I18=30," ",IF(I18=60,"Coeficiente duplicado por tasa de falla >4 Sal. x año/100 km.","REVISAR COEFICIENTE")) -> 
C20: 3 | D20: 4 | E20: 5 | F20: 6 | G20: 7 | H20: 8 | I20: 9 | J20: 10 | K20: 11 | L20: 12 | M20: 13 | N20: 14 | O20: 15 | P20: 16 | Q20: 17 | R20: 18 | S20: 19 | T20: 20 | U20: 21 | V20: 22 | W20: 23 | X20: 24 | Y20: 25 | Z20: 26 | AA20: 27 | AB20: 28 | AC20: 29
C21: N° | D21: INDISP | E21: ID EQUIPO | F21: ESTACIÓN TRANSFORMADORA | G21: EQUIPO | H21: POT. [MVA] | I21: U [kV] | J21: $/h | K21: Salida | L21: Entrada | M21: Hs. Indisp. | N21: Mtos. Indisp. | O21: Tipo Sal.(²) | P21: AUT. | Q21: REST. % | R21: E.N.S. | S21: K (P;ENS) | T21: PENALIZ. PROGRAM. | U21: REDUCC. PROGRAM. | V21: PENALIZACIONES Por Salida hs. Restantes | X21: PENALIZACIONES Por Salida hs. Restantes | Z21: RESTANTE FORZADA | AA21: REDUCC. RESTANTE | AB21: Informó en Térm. | AC21: TOTAL PENALIZAC.
C24: 14 | D24: 301773 | E24: 5469 | F24: EL CALAFATE | G24: TRAFO 2 | H24: 15 | I24: 132/33/13.2 | J24: =H24*$I$17 -> 2.187 | K24: 2016-04-19T22:54:00 | L24: 2016-04-19T23:22:00 | M24: =IF(F24="","",(L24-K24)*24) -> 0.4666666666 | N24: =IF(F24="","",ROUND((L24-K24)*24*60,0)) -> 28 | O24: F | P24: =IF(F24="","",IF(OR(O24="P",O24="RP"),"--","NO")) -> NO | Q24: =IF(F24="","","--") -> -- | R24: SI | S24: =$I$18*IF(OR(O24="P",O24="RP"),0.1,1)*IF(R24="SI",1,0.1) -> 30 | T24: =IF(O24="P",J24*S24*ROUND(N24/60,2),"--") -> -- | U24: =IF(O24="RP",J24*S24*ROUND(N24/60,2)*Q24/100,"--") -> -- | V24: =IF(AND(O24="F",P24="NO"),J24*S24,"--") -> 65.61 | W24: =IF(O24="F",J24*S24*ROUND(N24/60,2),"--") -> 30.8367 | X24: =IF(AND(O24="R",P24="NO"),J24*S24*Q24/100,"--") -> -- | Y24: =IF(O24="R",J24*S24*ROUND(N24/60,2)*Q24/100,"--") -> -- | Z24: =IF(O24="RF",J24*S24*ROUND(N24/60,2),"--") -> -- | AA24: =IF(O24="RR",J24*S24*ROUND(N24/60,2)*Q24/100,"--") -> -- | AB24: =IF(F24="","","SI") -> SI | AC24: =IF(F24="","",SUM(T24:AA24)*IF(AB24="SI",1,2)) -> 96.4467
S25: =$I$18*IF(OR(O25="P",O25="RP"),0.1,1)*IF(R25="SI",1,0.1) -> 3 | T25: =IF(O25="P",J25*S25*ROUND(N25/60,2),"--") -> -- | U25: =IF(O25="RP",J25*S25*ROUND(N25/60,2)*Q25/100,"--") -> -- | V25: =IF(AND(O25="F",P25="NO"),J25*S25,"--") -> -- | W25: =IF(O25="F",J25*S25*ROUND(N25/60,2),"--") -> -- | X25: =IF(AND(O25="R",P25="NO"),J25*S25*Q25/100,"--") -> -- | Y25: =IF(O25="R",J25*S25*ROUND(N25/60,2)*Q25/100,"--") -> -- | Z25: =IF(O25="RF",J25*S25*ROUND(N25/60,2),"--") -> -- | AA25: =IF(O25="RR",J25*S25*ROUND(N25/60,2)*Q25/100,"--") -> --
J26: 0 | R26: =IF(F26="","","NO") ->  | S26: 3 | T26: -- | U26: -- | V26: -- | W26: -- | X26: -- | Y26: -- | Z26: -- | AA26: --
J27: 0 | S27: 3 | T27: -- | U27: -- | V27: -- | W27: -- | X27: -- | Y27: -- | Z27: -- | AA27: --
J28: 0 | S28: 3 | T28: -- | U28: -- | V28: -- | W28: -- | X28: -- | Y28: -- | Z28: -- | AA28: --
J29: 0 | S29: 3 | T29: -- | U29: -- | V29: -- | W29: -- | X29: -- | Y29: -- | Z29: -- | AA29: --
J30: 0 | S30: 3 | T30: -- | U30: -- | V30: -- | W30: -- | X30: -- | Y30: -- | Z30: -- | AA30: --
J31: 0 | S31: 3 | T31: -- | U31: -- | V31: -- | W31: -- | X31: -- | Y31: -- | Z31: -- | AA31: --
J32: 0 | S32: 3 | T32: -- | U32: -- | V32: -- | W32: -- | X32: -- | Y32: -- | Z32: -- | AA32: --
J33: 0 | S33: 3 | T33: -- | U33: -- | V33: -- | W33: -- | X33: -- | Y33: -- | Z33: -- | AA33: --
J34: 0 | S34: 3 | T34: -- | U34: -- | V34: -- | W34: -- | X34: -- | Y34: -- | Z34: -- | AA34: --
J35: 0 | S35: 3 | T35: -- | U35: -- | V35: -- | W35: -- | X35: -- | Y35: -- | Z35: -- | AA35: --
J36: 0 | S36: 3 | T36: -- | U36: -- | V36: -- | W36: -- | X36: -- | Y36: -- | Z36: -- | AA36: --
J37: 0 | S37: 3 | T37: -- | U37: -- | V37: -- | W37: -- | X37: -- | Y37: -- | Z37: -- | AA37: --
J38: 0 | S38: 3 | T38: -- | U38: -- | V38: -- | W38: -- | X38: -- | Y38: -- | Z38: -- | AA38: --
J39: 0 | S39: 3 | T39: -- | U39: -- | V39: -- | W39: -- | X39: -- | Y39: -- | Z39: -- | AA39: --
J40: 0 | S40: 3 | T40: -- | U40: -- | V40: -- | W40: -- | X40: -- | Y40: -- | Z40: -- | AA40: --
J41: 0 | S41: 3 | T41: -- | U41: -- | V41: -- | W41: -- | X41: -- | Y41: -- | Z41: -- | AA41: --
J42: 0 | S42: 3 | T42: -- | U42: -- | V42: -- | W42: -- | X42: -- | Y42: -- | Z42: -- | AA42: --
J43: 0 | S43: 3 | T43: -- | U43: -- | V43: -- | W43: -- | X43: -- | Y43: -- | Z43: -- | AA43: --
C45: (²) | D45: F - FORZADA | T45: =SUM(T22:T44) -> 0 | U45: 0 | V45: 65.61 | W45: 30.8367 | X45: 0 | Y45: 0 | Z45: 0 | AA45: 0 | AC45: =ROUND(SUM(AC22:AC44),2) -> 96.45

Sheet SA-EDERSA-04 (1)
B2: =+'TOT-0416'!B2 -> ANEXO IV al Memorandum D.T.E.E. N° 279 / 2017
A4: ENTE NACIONAL REGULADOR
A5: DE LA ELECTRICIDAD
F8: SISTEMA DE TRANSPORTE DE ENERGÍA ELÉCTRICA POR DISTRIBUCIÓN TRONCAL - TRANSPA S.A.
F10: 2.2.1.- Transportista Independiente E.D.E.R.S.A.
B12: =+'TOT-0416'!B14 -> Desde el 01 al 30 de abril de 2016
F15: Salida en 330 kV | G15: - | H15: =60*'TOT-0416'!B13 -> 60 | J15: =IF(H15=60," ",IF(H15=120,"Coeficiente duplicado por tasa de falla >4 Sal. x año/100 km.","REVISAR COEFICIENTE")) -> 
F16: Salida en 132 kV o 66 kV = | G16: 3.243 | H16: =50*'TOT-0416'!B13 -> 50 | J16: =IF(H16=50," ",IF(H16=100,"Coeficiente duplicado por tasa de falla >4 Sal. x año/100 km.","REVISAR COEFICIENTE")) -> 
F17: Salida en 33 kV | G17: 2.433 | H17: =25*'TOT-0416'!B13 -> 25 | J17: =IF(H17=25," ",IF(H17=50,"Coeficiente duplicado por tasa de falla >4 Sal. x año/100 km.","REVISAR COEFICIENTE")) -> 
F18: Salida en 13,2 kV = | G18: 2.433 | H18: =20*'TOT-0416'!B13 -> 20 | J18: =IF(H18=20," ",IF(H18=40,"Coeficiente duplicado por tasa de falla >4 Sal. x año/100 km.","REVISAR COEFICIENTE")) -> 
C20: 3 | D20: 4 | E20: 5 | F20: 6 | G20: 7 | H20: 8 | I20: 9 | J20: 10 | K20: 11 | L20: 12 | M20: 13 | N20: 14 | O20: 15 | P20: 16 | Q20: 17 | R20: 18 | S20: 19 | T20: 20 | U20: 21 | V20: 22
C21: N° | D21: INDISP | E21: ID EQUIPO | F21: ESTACIÓN TRANSFORMADORA | G21: EQUIPO | H21: U [kV] | I21: $/h | J21: Salida | K21: Entrada | L21: Hs. Indisp. | M21: Mtos. Indisp. | N21: Tipo Sal.(²) | O21: AUT. | P21: K (U) | Q21: PENALIZ. PROGRAM. | R21: PENALIZACIONES Por Salida hs. Restantes | T21: RESTANTE FORZADA | U21: Informó en Térm. | V21: TOTAL PENALIZAC.
C24: 15 | D24: 301774 | E24: 1773 | F24: VIEDMA | G24: SALIDA ALIM.5 VIEDMA 2 | H24: 13.2 | I24: =IF(H24=330,$G$15,IF(AND(H24<=132,H24>=66),$G$16,IF(AND(H24<66,H24>=33),$G$17,$G$18))) -> 2.433 | J24: 2016-04-18T09:02:00 | K24: 2016-04-18T09:13:00 | L24: =IF(F24="","",(K24-J24)*24) -> 0.1833333334 | M24: =IF(F24="","",ROUND((K24-J24)*24*60,0)) -> 11 | N24: P | O24: =IF(F24="","",IF(N24="P","--","NO")) -> -- | P24: =IF(H24=330,$H$15,IF(AND(H24<=132,H24>=66),$H$16,IF(AND(H24<66,H24>13.2),$H$17,$H$18))) -> 20 | Q24: =IF(N24="P",I24*P24*ROUND(M24/60,2)*0.1,"--") -> 0.87588 | R24: =IF(AND(N24="F",O24="NO"),I24*P24,"--") -> -- | S24: =IF(N24="F",I24*P24*ROUND(M24/60,2),"--") -> -- | T24: =IF(N24="RF",I24*P24*ROUND(M24/60,2),"--") -> -- | U24: =IF(F24="","","SI") -> SI | V24: =IF(F24="","",SUM(Q24:T24)*IF(U24="SI",1,2)*IF(H24="500/220",0,1)) -> 0.87588
C25: 16 | D25: 301775 | E25: 1756 | F25: S.A. ESTE | G25: SALIDA 2-PUERTO | H25: 33 | I25: 2.433 | J25: 2016-04-21T09:02:00 | K25: 2016-04-21T12:03:00 | L25: 3.016666667 | M25: 181 | N25: P | O25: -- | P25: 25 | Q25: 18.36915 | R25: -- | S25: -- | T25: =IF(N25="RF",I25*P25*ROUND(M25/60,2),"--") -> -- | U25: SI | V25: 18.36915
I26: 2.433 | P26: 20 | Q26: -- | R26: -- | S26: -- | T26: --
I27: 2.433 | P27: 20 | Q27: -- | R27: -- | S27: -- | T27: --
I28: 2.433 | P28: 20 | Q28: -- | R28: -- | S28: -- | T28: --
I29: 2.433 | P29: 20 | Q29: -- | R29: -- | S29: -- | T29: --
I30: 2.433 | P30: 20 | Q30: -- | R30: -- | S30: -- | T30: --
I31: 2.433 | P31: 20 | Q31: -- | R31: -- | S31: -- | T31: --
I32: 2.433 | P32: 20 | Q32: -- | R32: -- | S32: -- | T32: --
I33: 2.433 | P33: 20 | Q33: -- | R33: -- | S33: -- | T33: --
I34: 2.433 | P34: 20 | Q34: -- | R34: -- | S34: -- | T34: --
I35: 2.433 | P35: 20 | Q35: -- | R35: -- | S35: -- | T35: --
I36: 2.433 | P36: 20 | Q36: -- | R36: -- | S36: -- | T36: --
I37: 2.433 | P37: 20 | Q37: -- | R37: -- | S37: -- | T37: --
I38: 2.433 | P38: 20 | Q38: -- | R38: -- | S38: -- | T38: --
I39: 2.433 | P39: 20 | Q39: -- | R39: -- | S39: -- | T39: --
I40: 2.433 | P40: 20 | Q40: -- | R40: -- | S40: -- | T40: --
I41: 2.433 | P41: 20 | Q41: -- | R41: -- | S41: -- | T41: =IF(N41="RF",I41*P41*ROUND(M41/60,2),"--") -> --
I42: 2.433 | P42: 20 | Q42: -- | R42: -- | S42: -- | T42: =IF(N42="RF",I42*P42*ROUND(M42/60,2),"--") -> --
I43: 2.433 | P43: 20 | Q43: -- | R43: -- | S43: -- | T43: =IF(N43="RF",I43*P43*ROUND(M43/60,2),"--") -> --
C45: (²) | D45: P - PROGRAMADA | Q45: =ROUND(SUM(Q22:Q44),2) -> 19.25 | R45: =SUM(R22:R44) -> 0 | S45: =SUM(S22:S44) -> 0 | T45: =SUM(T22:T44) -> 0 | V45: =SUM(V22:V44) -> 19.24503

Sheet SUP-EDERSA
B2: ='TOT-0416'!B2 -> ANEXO IV al Memorandum D.T.E.E. N° 279 / 2017
A3: ENTE NACIONAL REGULADOR
A4: DE LA ELECTRICIDAD
D7: SISTEMA DE TRANSPORTE DE ENERGÍA ELÉCTRICA POR DISTRIBUCIÓN TRONCAL - TRANSPA S.A.
D9: 3.1.- SUPERVISIÓN - Transportista Independiente E.D.E.R.S.A.
B11: ='TOT-0416'!B14 -> Desde el 01 al 30 de abril de 2016
C15: a) Datos
L16: Salida en 132 kV = | M16: 12.14
D17: Tiempo de servicio = | E17: =MID(B11,16,2)*24 -> 720 | F17: hs | I17: $/100 km-h : LÍNEAS 132 kV | J17: 261.099 | L17: Salida en 33 kV | M17: 9.111
D18: Porcentaje por Supervisión = | E18: 0.025 | I18: Cargo por Transformador por MVA = | J18: 0.909 | L18: Salida en 13,2 kV = | M18: 9.111
C20: b) SM: es la suma de las sanciones a que en cada mes se hiciere pasible el Transportista Independiente, valorizadas con idénticos criterios que los que se aplican a la Concesionaria.
D22: SANCIÓN al T.I. | F22: LÍNEAS | I22: 0
F23: TRANSFORMACIÓN | I23: 0
F24: SALIDAS | I24: 72.07 | L24: SEGÚN 2.2.1.
H26: SM = | I26: =SUM(I22:I25) -> 72.07
C28: c) RM : es la remuneración que mensualmente recibiría el Transportista Independiente, si su servicio fuera valorizado conforme al régimen remuneratorio que se aplica a la Concesionaria.
D30: Cargo por Capacidad de Transporte | E30: U [kV] | F30: Long [km] | H30: RM por Cap. Transporte | I30: RM por Energía Transportada | L30: TOTAL
D31: PUNTA COLORADA - SIERRA GRANDE | E31: 132 | F31: 31 | H31: =F31*$J$17*$E$17/100 -> 58277.2968 | I31: 0 | J31: (DTE 0416) | L31: =SUM(H31:K31) -> 58277.2968
D32: S.A. OESTE - SIERRA GRANDE | E32: 132 | F32: 110.3 | H32: =F32*$J$17*$E$17/100 -> 207354.3818 | I32: 15537 | J32: (DTE 0416) | L32: =SUM(H32:K32) -> 222891.3818
D33: S.A. OESTE - VIEDMA | E33: 132 | F33: 185.6 | H33: =F33*$J$17*$E$17/100 -> 348911.8157 | I33: 13057 | J33: (DTE 0416) | L33: =SUM(H33:K33) -> 361968.8157
D34: VIEDMA - CARMEN DE PATAGONES | E34: 132 | F34: 7 | H34: =F34*$J$17*$E$17/100 -> 13159.3896 | I34: 0 | J34: (DTE 0416) | L34: =SUM(H34:K34) -> 13159.3896
L35: =SUM(L31:L34) -> 656296.8839
D37: Cargo por Capacidad de Transformación | E37: Equipo | F37: Pot E.T. [MVA] | H37: RM Cap. Transformación | J37: E.T | L37: Salida | M37: U [kV] | N37: Cargo
D38: PUNTA COLORADA | E38: TRAFOS 1y2 | F38: 30 | H38: =+F38*$J$18*$E$17 -> 19634.4 | J38: C. DE PATAGONES | L38: Salida Viedma | M38: 132 | N38: =M16*E17 -> 8740.8
D39: SIERRA GRANDE | E39: Tr 1, 2, 4 y 5 | F39: 88 | H39: =+F39*$J$18*$E$17 -> 57594.24 | J39: SAN ANTONIO ESTE | L39: Salida Conesa y SA Oeste | M39: 33 | N39: =+M17*E17*2 -> 13119.84
D40: SAN ANTONIO ESTE | E40: TRAFO 1 | F40: 7.5 | H40: =+F40*$J$18*$E$17 -> 4908.6 | J40: SAN ANTONIO OESTE | L40: Salidas Valcheta, SA Oeste y SA Este | M40: 33 | N40: =3*M17*E17 -> 19679.76
D41: SAN ANTONIO OESTE | E41: TRAFO 1 | F41: 15 | H41: =+F41*$J$18*$E$17 -> 9817.2 | J41: VIEDMA | L41: Alimentadores 1,2,3,5,6 y 8 | M41: 13.2 | N41: =+M18*E17*6 -> 39359.52
D42: VIEDMA | E42: TRAFOS 1 y 2 | F42: 30 | H42: =+F42*$J$18*$E$17 -> 19634.4 | J42: PUNTA COLORADA | L42: Alimentadores en 33 y 6,6 (2) | N42: =+M17*E17+M18*E17*2 -> 19679.76
H43: =SUM(H38:H42) -> 111588.84 | J43: SIERRA GRANDE | L43: Salidas en 132, 33, 13,2 (3), 6,6 (2) | N43: =(M16+M17+M18*5)*E17 -> 48100.32
N44: =SUM(N38:N43) -> 148680
H46: RM = | I46: =+H43+N44+L35 -> 916565.7239 | K46: RM * = | L46: 265747.0658
C48: d) CS: Es el cargo por Supervisión de la Operación que la Transportista percibe por supervisar la operación y mantenimiento del Transportista Independiente.
D50: Cargo por Supervisión afectado a la sanción | H50: CS = | I50: =E18*L46 -> 6643.676644 | K50: RM * = VALOR EMPLEADO PARA CALCULAR "CS"
C52: e) SANCIÓN
D53: Sanción Calculada | E53: =10*I26*I50/I46 -> 5.22395463
D55: TOTAL A PENALIZAR A TRANSPA S.A. POR SUPERVISIÓN A EDERSA
H57: SANCIÓN = | I57: =IF($E$53>3*I50,3*I50,$E$53) -> 5.22395463

Sheet SUP-ECLESUR
B2: ='TOT-0416'!B2 -> ANEXO IV al Memorandum D.T.E.E. N° 279 / 2017
A3: ENTE NACIONAL REGULADOR
A4: DE LA ELECTRICIDAD
D7: SISTEMA DE TRANSPORTE DE ENERGÍA ELÉCTRICA POR DISTRIBUCIÓN TRONCAL - TRANSPA S.A.
D9: 3.2.- SUPERVISIÓN - Transportista Independiente ECLESUR La Esperanza - Calafate
B11: ='TOT-0416'!B14 -> Desde el 01 al 30 de abril de 2016
C15: a) Datos
L16: Salida en 132 kV o 66 kV = | M16: -
D17: Tiempo de servicio = | E17: =MID(B11,16,2)*24 -> 720 | F17: hs | I17: $/100 km-h : LÍNEAS 132 kV | J17: 261.099 | L17: Salida en 33 kV | M17: 9.111
D18: Porcentaje por Supervisión = | E18: 0.04 | I18: Cargo por Transformador por MVA = | J18: 0.909 | L18: Salida en 13,2 kV = | M18: 9.111
C20: b) SM: es la suma de las sanciones a que en cada mes se hiciere pasible el Transportista Independiente, valorizadas con idénticos criterios que los que se aplican a la Concesionaria.
D22: SANCIÓN al T.I. | F22: LÍNEAS | I22: 0
F23: TRANSFORMACIÓN | I23: 601.3 | L23: SEGÚN 2.1.2.
F24: SALIDAS | I24: 0
H26: SM = | I26: =SUM(I22:I25) -> 601.3
C28: c) RM : es la remuneración que mensualmente recibiría el Transportista Independiente, si su servicio fuera valorizado conforme al régimen remuneratorio que se aplica a la Concesionaria.
D30: Cargo por Capacidad de Transporte | E30: U [kV] | F30: Long [km] | H30: RM por Cap. Transporte | I30: RM por Energía Transportada | L30: TOTAL
D31: ESPERANZA - EL CALAFATE | E31: 132 | F31: 141.5 | H31: =F31*$J$17*$E$17/100 -> 266007.6612 | I31: 5378 | J31: (DTE 0416) | L31: =SUM(H31:K31) -> 271385.6612
L32: =SUM(H32:K32) -> 0
L33: =SUM(L31:L32) -> 271385.6612
D35: Cargo por Capacidad de Transformación | E35: Equipo | F35: Pot E.T. [MVA] | H35: RM Cap. Transformación | J35: E.T | L35: Salida | M35: U [kV] | N35: Cargo
D36: EL CALAFATE | E36: TRAFOS 2 | F36: 15 | H36: =+F36*$J$18*$E$17 -> 9817.2 | J36: EL CALAFATE | L36: Salida TRAFO 02 | M36: 13.2 | N36: =M18*E17 -> 6559.92
D37: EL CALAFATE | E37: TRAFOS 3 | F37: 15 | H37: =+F37*$J$18*$E$17 -> 9817.2 | J37: EL CALAFATE | L37: Salida TRAFO 03 | M37: 13.2 | N37: =M18*E17 -> 6559.92
H38: =+F38*$J$18*$E$17 -> 0 | J38: EL CALAFATE | L38: Salida TRAFO 02 | M38: 33 | N38: =M17*E17 -> 6559.92
H39: =+F39*$J$18*$E$17 -> 0 | J39: EL CALAFATE | L39: Salida TRAFO 03 | M39: 33 | N39: =M17*E17 -> 6559.92
H40: =+F40*$J$18*$E$17 -> 0
H41: =SUM(H36:H40) -> 19634.4
N42: =SUM(N36:N41) -> 26239.68
H44: RM = | I44: =+H41+N42+L33 -> 317259.7412 | K44: RM * = | L44: 66891.7004
C46: d) CS: Es el cargo por Supervisión de la Operación que la Transportista percibe por supervisar la operación y mantenimiento del Transportista Independiente.
D48: Cargo por Supervisión afectado a la sanción | H48: CS = | I48: =E18*L44 -> 2675.668016
C50: e) SANCIÓN
D51: Sanción Calculada | E51: =10*I26*I48/I44 -> 50.71173455
D53: TOTAL A PENALIZAR A TRANSPA S.A. POR SUPERVISIÓN A ECLESUR LA ESPERANZA - CALAFATE
H55: SANCIÓN = | I55: =IF($E$51>3*I48,3*I48,$E$51) -> 50.71173455 | K55: RM* = VALOR EMPLEADO PARA CALCULAR CS

Sheet DATO
A1: Mes | B1: Mes | C1: Dia | D1: Año
A2: enero | B2: 01 | C2: 31 | D2: 2006
A3: febrero | B3: 02 | C3: =IF(MOD(E14,4)=0,29,28) -> 29 | D3: =+D2+1 -> 2007
A4: marzo | B4: 03 | C4: 31 | D4: 2008
A5: abril | B5: 04 | C5: 30 | D5: 2009
A6: mayo | B6: 05 | C6: 31 | D6: 2010
A7: junio | B7: 06 | C7: 30 | D7: 2011
A8: julio | B8: 07 | C8: 31 | D8: 2012
A9: agosto | B9: 08 | C9: 31 | D9: 2013
A10: septiembre | B10: 09 | C10: 30 | D10: 2014
A11: octubre | B11: 10 | C11: 31 | D11: 2015
A12: noviembre | B12: 11 | C12: 30 | D12: 2016
A13: diciembre | B13: 12 | C13: 31 | I13: Total
A14: 11 | B14: 4 | C14: =CELL("CONTENIDO",OFFSET(A1,B14,0)) -> abril | D14: =CELL("CONTENIDO",OFFSET(C1,B14,0)) -> 30 | E14: =CELL("CONTENIDO",OFFSET(D1,A14,0)) -> 2016 | F14: ="Desde el 01 al " & D14 & " de " & C14 & " de " & E14 -> Desde el 01 al 30 de abril de 2016 | G14: =CELL("CONTENIDO",OFFSET(B1,B14,0)) -> 04 | H14: =RIGHT(E14,2) -> 16 | I14: B14
B15: ="\\rugor\files\Transporte\Transporte\AA PROCESO AUT ARCHIVOS J\TRANSPA\" &E14 -> \\rugor\files\Transporte\Transporte\AA PROCESO AUT ARCHIVOS J\TRANSPA\2016 | G15: ="J"&G14&H14&"TPA" -> J0416TPA
B16: ="\\rugor\files\Transporte\transporte\AA PROCESO AUT\INTERCAMBIO\" &H14&G14 -> \\rugor\files\Transporte\transporte\AA PROCESO AUT\INTERCAMBIO\1604
A17: Hoja | B17: FilaInicio | C17: FilasPlantilla | D17: Columnas | E17: NombreHoja | F17: OrigenDeDatos | G17: Col00 | H17: Col01 | I17: Col02 | J17: Col03 | K17: Col04 | L17: Col05 | M17: Col06 | N17: Col07 | O17: Col08 | P17: Col09 | Q17: Col10 | R17: Col11 | S17: Col12 | T17: Col13 | U17: Col14 | V17: Col15 | W17: FILHTOTAL | X17: COLHTOTAL | Y17: FILHCALC | Z17: COLHCALC | AA17: FILTRANSP | AB17: COLTRANSP | AC17: COL TSAL
A18: MODELO L | B18: 22 | C18: 20 | D18: 12 | E18: ="LI-" & $G$14 -> LI-04 | F18: TRANSPA_INDISPONIBILIDADES_LINEAS_TRANSPA.XLS | G18: 3 | H18: 5 | I18: 4 | J18: 6 | K18: 7 | L18: 8 | M18: 0 | N18: 10 | O18: 11 | P18: 14 | Q18: 0 | R18: 26 | S18: 15 | T18: 0 | U18: 0 | V18: 0 | W18: 19 | X18: 9 | Y18: 43 | Z18: 27 | AA18: 20 | AB18: 27 | AC18: 14
A19: MODELO L EDERSA | B19: 22 | C19: 20 | D19: 12 | E19: ="LI-EDERSA-" & $G$14 -> LI-EDERSA-04 | F19: TRANSPA_INDISPONIBILIDADES_LINEAS_EDERSA.XLS | G19: 3 | H19: 5 | I19: 4 | J19: 6 | K19: 7 | L19: 8 | M19: 0 | N19: 10 | O19: 11 | P19: 14 | Q19: 0 | R19: 26 | S19: 15 | T19: 0 | U19: 0 | V19: 0 | W19: 20 | X19: 9 | Y19: 43 | Z19: 27 | AA19: 20 | AB19: 27 | AC19: 14
A20: MODELO L SPSE | B20: 22 | C20: 20 | D20: 12 | E20: ="LI-SPSE-" & $G$14 -> LI-SPSE-04 | F20: TRANSPA_INDISPONIBILIDADES_LINEAS_SPSE.XLS | G20: 3 | H20: 5 | I20: 4 | J20: 6 | K20: 7 | L20: 8 | M20: 0 | N20: 10 | O20: 11 | P20: 14 | Q20: 0 | R20: 26 | S20: 15 | T20: 0 | U20: 0 | V20: 0 | W20: 21 | X20: 9 | Y20: 43 | Z20: 27 | AA20: 20 | AB20: 27 | AC20: 14
A21: MODELO L TRANSACUE | B21: 22 | C21: 20 | D21: 12 | E21: ="LI-TRANSACUE-" & $G$14 -> LI-TRANSACUE-04 | F21: TRANSPA_INDISPONIBILIDADES_LINEAS_TRANSACUE.XLS | G21: 3 | H21: 5 | I21: 4 | J21: 6 | K21: 7 | L21: 8 | M21: 0 | N21: 10 | O21: 11 | P21: 14 | Q21: 0 | R21: 26 | S21: 15 | T21: 0 | U21: 0 | V21: 0 | W21: 22 | X21: 9 | Y21: 43 | Z21: 27 | AA21: 20 | AB21: 27 | AC21: 14
A22: MODELO T | B22: 24 | C22: 20 | D22: 13 | E22: ="TR-" & $G$14 -> TR-04 | F22: TRANSPA_INDISPONIBILIDADES_TRAFOS_TRANSPA.XLS | G22: 3 | H22: 5 | I22: 4 | J22: 6 | K22: 7 | L22: 8 | M22: 9 | N22: 11 | O22: 12 | P22: 15 | Q22: 16 | R22: 18 | S22: 28 | T22: 0 | U22: 0 | V22: 0 | W22: 27 | X22: 9 | Y22: 45 | Z22: 29 | AA22: 22 | AB22: 29 | AC22: 15
A23: MODELO T EDERSA | B23: 24 | C23: 20 | D23: 13 | E23: ="TR-EDERSA-" & $G$14 -> TR-EDERSA-04 | F23: TRANSPA_INDISPONIBILIDADES_TRAFOS_EDERSA.XLS | G23: 3 | H23: 5 | I23: 4 | J23: 6 | K23: 7 | L23: 8 | M23: 9 | N23: 11 | O23: 12 | P23: 15 | Q23: 16 | R23: 18 | S23: 28 | T23: 0 | U23: 0 | V23: 0 | W23: 28 | X23: 9 | Y23: 45 | Z23: 29 | AA23: 22 | AB23: 29 | AC23: 15
A24: MODELO T SPSE | B24: 24 | C24: 20 | D24: 13 | E24: ="TR-SPSE-" & $G$14 -> TR-SPSE-04 | F24: TRANSPA_INDISPONIBILIDADES_TRAFOS_SPSE.XLS | G24: 3 | H24: 5 | I24: 4 | J24: 6 | K24: 7 | L24: 8 | M24: 9 | N24: 11 | O24: 12 | P24: 15 | Q24: 16 | R24: 18 | S24: 28 | T24: 0 | U24: 0 | V24: 0 | W24: 29 | X24: 9 | Y24: 45 | Z24: 29 | AA24: 22 | AB24: 29 | AC24: 15
A25: MODELO S | B25: 24 | C25: 20 | D25: 10 | E25: ="SA-" & $G$14 -> SA-04 | F25: TRANSPA_INDISPONIBILIDADES_SALIDAS_TRANSPA.XLS | G25: 3 | H25: 5 | I25: 4 | J25: 6 | K25: 7 | L25: 8 | M25: 10 | N25: 11 | O25: 14 | P25: 15 | Q25: 21 | R25: 0 | S25: 0 | T25: 0 | U25: 0 | V25: 0 | W25: 32 | X25: 9 | Y25: 45 | Z25: 22 | AA25: 22 | AB25: 22 | AC25: 21
A26: MODELO S EDERSA | B26: 24 | C26: 20 | D26: 10 | E26: ="SA-EDERSA-" & $G$14 -> SA-EDERSA-04 | F26: TRANSPA_INDISPONIBILIDADES_SALIDAS_EDERSA.XLS | G26: 3 | H26: 5 | I26: 4 | J26: 6 | K26: 7 | L26: 8 | M26: 10 | N26: 11 | O26: 14 | P26: 15 | Q26: 21 | R26: 0 | S26: 0 | T26: 0 | U26: 0 | V26: 0 | W26: 33 | X26: 9 | Y26: 45 | Z26: 22 | AA26: 22 | AB26: 22 | AC26: 21
A27: MODELO S SPSE | B27: 24 | C27: 20 | D27: 10 | E27: ="SA-SPSE-" & $G$14 -> SA-SPSE-04 | F27: TRANSPA_INDISPONIBILIDADES_SALIDAS_SPSE.XLS | G27: 3 | H27: 5 | I27: 4 | J27: 6 | K27: 7 | L27: 8 | M27: 10 | N27: 11 | O27: 14 | P27: 15 | Q27: 21 | R27: 0 | S27: 0 | T27: 0 | U27: 0 | V27: 0 | W27: 34 | X27: 9 | Y27: 45 | Z27: 22 | AA27: 22 | AB27: 22 | AC27: 21
A28: MODELO S TRANSACUE | B28: 24 | C28: 20 | D28: 10 | E28: ="SA-TRANSACUE-" & $G$14 -> SA-TRANSACUE-04 | F28: TRANSPA_INDISPONIBILIDADES_SALIDAS_TRANSACUE.XLS | G28: 3 | H28: 5 | I28: 4 | J28: 6 | K28: 7 | L28: 8 | M28: 10 | N28: 11 | O28: 14 | P28: 15 | Q28: 21 | R28: 0 | S28: 0 | T28: 0 | U28: 0 | V28: 0 | W28: 35 | X28: 9 | Y28: 45 | Z28: 22 | AA28: 22 | AB28: 22 | AC28: 21
A29: MODELO R | B29: 22 | C29: 20 | D29: 12 | E29: ="RE-" & $G$14 -> RE-04 | F29: TRANSPA_INDISPONIBILIDADES_REACTIVOS_TRANSPA.XLS | G29: 3 | H29: 5 | I29: 4 | J29: 6 | K29: 7 | L29: 8 | M29: 10 | N29: 11 | O29: 14 | P29: 15 | Q29: 21 | R29: 0 | S29: 0 | T29: 0 | U29: 0 | V29: 0 | W29: 37 | X29: 9 | Y29: 43 | Z29: 22 | AA29: 20 | AB29: 22 | AC29: 21
A30: MODELO VST | B30: 19 | C30: 24 | D30: 4 | E30: ="CAUSAS-VST-" & $G$14 -> CAUSAS-VST-04 | F30: TRANSPA_CAUSAS_VST.XLS | G30: 3 | H30: 4 | I30: 5 | J30: 6 | K30: 7 | L30: 0 | M30: 0 | N30: 0 | O30: 0 | P30: 0 | Q30: 0 | R30: 0 | S30: 0 | T30: 0 | U30: 0 | V30: 0 | W30: 999 | X30: 999 | Y30: 0 | Z30: 0 | AA30: 0 | AB30: 0 | AC30: 0
B31: 30 | C31: 10 | D31: 11 | E31: DAG | F31: TRANSPA_INDISPONIBILIDADES_DAG.XLS | G31: 3 | H31: 5 | I31: 0 | J31: 4 | K31: 5 | L31: 6 | M31: 8 | N31: 9 | O31: 10 | P31: 13 | Q31: 15 | R31: 16 | S31: 0 | T31: 0 | U31: 0 | V31: 0 | W31: 0 | X31: 0 | Y31: 0 | Z31: 0 | AA31: 0 | AB31: 0 | AC31: 0
